[Event "45th FIDE Womens Olympiad 2024"]
[Site "Budapest"]
[Date "2024.09.15"]
[Round "5.28"]
[White "Gaponenko, Inna"]
[Black "Balajayeva, Khanim"]
[Result "1/2-1/2"]
[ECO "C56"]
[WhiteElo "2324"]
[BlackElo "2384"]
[Annotator "TA"]
[PlyCount "92"]
[EventDate "2024.09.05"]
[EventType "team-tourn"]
[EventCountry "HUN"]
[SourceTitle "playchess.com"]
[Source "ChessBase"]
[SourceQuality "1"]
[WhiteTeam "Ukraine"]
[BlackTeam "Azerbaijan"]
[WhiteTeamCountry "UKR"]
[BlackTeamCountry "AZE"]
[TimeControl "40/5400+30:1800+30"]

{[%evp 20,92,30,23,15,20,21,16,20,8,31,21,24,27,12,8,27,40,31,36,27,38,37,22,33,27,56,54,92,89,77,88,100,87,90,92,131,133,118,41,36,40,52,47,50,54,50,8,4,4,24,0,0,0,8,8,8,0,0,0,0,0,0,0,52,0,0,0,0,0,0,0,0,0,0]} 1. e4 {[%emt 0:00:04]} e5 {[%emt 0:00:09]} 2. Nf3 {[%emt 0:00:06]} Nc6 {[%emt 0:00:05]} 3. d4 {[%emt 0:00:14]} exd4 {[%emt 0:00:12]} 4. Bc4 {[%emt 0:00:07]} Nf6 {[%emt 0:00:19]} 5. e5 {[%emt 0:00:26]} d5 {[%emt 0:00:21]} 6. Bb5 {[%emt 0:00:09]} Ne4 {[%emt 0:00:07]} 7. Nxd4 {[%emt 0:00:56]} Bc5 {[%emt 0:00:24]} 8. Be3 {[%emt 0:00:55]} O-O {[%emt 0:00:30]} 9. Nxc6 {[%emt 0:00:22]} bxc6 {[%emt 0:00:13]} 10. Bxc5 {[%emt 0:00:12]} Nxc5 {[%emt 0:00:03]} 11. Bxc6 {[%emt 0:00:17]} Rb8 {[%emt 0:00:27][%cal Ba8b8,Bb8b2,Bb2c2][%mdl 32]} 12. Qxd5 {[%emt 0:00:53]} Qe7 {[%emt 0:00:26][%cal Of8d8]} 13. O-O {[%emt 0:01:02]} Rxb2 {[%emt 0:00:35]} 14. Nc3 {[%emt 0:01:38]} Rxc2 {[%emt 0:00:24]} 15. Qd4 {[%emt 0:03:05]} Ne6 {[%emt 0:01:21]} 16. Qd3 {[%emt 0:01:24]} Rb2 {[%emt 0:00:09]} 17. Qe3 {[%emt 0:03:04]} (17. Nd5 {keeps more tension.} Qc5 18. Rac1 Qd4 19. Qf5) 17... Rd8 {[%emt 0:04:16] Repels Nd5} 18. Nd5 $36 {[%emt 0:45:52][%mdl 2048] White is pushing.} Qh4 {[%emt 0:13:54]} 19. g3 {[%emt 0:25:15]} (19. Rad1 {is interesting.} Ba6 20. g3 Qc4 21. Ne7+) 19... Qd4 {[%emt 0:14:49]} 20. Ne7+ {[%emt 0:04:21]} Kh8 {[%emt 0:05:14]} 21. Nxc8 {[%emt 0:03:32]} Rxc8 {[%emt 0:00:59]} 22. Rad1 {[%emt 0:00:34]} Qxe3 23. fxe3 {[%emt 0:00:02]} Rd8 {[%emt 0:31:40]} 24. Rxd8+ {[%emt 0:06:53]} Nxd8 $16 {[%emt 0:00:03][%mdl 4096] Endgame. [#] KRB-KRN} 25. e6 $1 {[%emt 0:00:48]} Nxe6 {[%emt 0:02:31]} ({And not} 25... Nxc6 26. exf7 h6 27. f8=Q+ (27. f8=B Rxa2 28. Rf7 Kg8 $11) 27... Kh7 28. Rf7 (28. Qf5+ Kg8 29. Qd5+ Kh7 30. Qe4+ Kg8 31. Qe8+ Kh7 32. Rf8 Rb1+ 33. Kg2 Rb2+ 34. Kh3 Rxh2+ 35. Kxh2 g6 36. Rf7#) 28... Rb1+ 29. Kg2 (29. Rf1 Rxf1+ 30. Kxf1 Ne5 $18) 29... Rb2+ 30. Kh3) 26. Rxf7 {[%emt 0:00:01]} g6 {[%emt 0:02:41][%cal Oe6g5]} 27. Bd5 {[%emt 0:00:22]} Rb1+ {[%emt 0:03:39]} 28. Kf2 {[%emt 0:00:53] White is more active.} Rb2+ {[%emt 0:00:09] [#]} 29. Ke1 {[%emt 0:00:34]} (29. Kf1 $1 $16 Ng5 30. Rxc7) 29... Nc5 $14 {[%emt 0:03:35]} 30. Rxc7 {[%emt 0:00:02]} Nd3+ {[%emt 0:00:05]} 31. Kf1 {[%emt 0:00:07]} a5 {[%emt 0:01:48]} 32. h4 {[%emt 0:00:43]} Nb4 {[%emt 0:00:23]} 33. e4 {[%emt 0:00:23] Threatens to win with a4.} Nxd5 $1 {[%emt 0:04:00]} 34. exd5 $11 {[%emt 0:00:01] Hoping for d6. KR-KR} Rd2 $1 {[%emt 0:00:04]} 35. Rc5 {[%emt 0:01:56]} Rxa2 {[%emt 0:02:23]} 36. Ke1 {[%emt 0:00:01] aiming for d6.} Kg7 {[%emt 0:01:04]} 37. d6 {[%emt 0:00:33]} Kf7 {[%emt 0:00:03]} 38. Rc7+ {[%emt 0:00:22]} Ke6 {[%emt 0:04:58]} 39. Rxh7 {[%emt 0:00:02] Intending d7 and mate.} Kxd6 {[%emt 0:00:03]} (39... Rb2 {feels hotter.} 40. d7 Rb8 41. Rh6 Kf7) 40. Rg7 {[%emt 0:01:06]} Ke5 {[%emt 0:01:36]} 41. Rxg6 {[%emt 0:30:03]} a4 {[%emt 0:30:18]} ({Better is} 41... Ke4 $11) 42. h5 {[%emt 0:00:00]} (42. Rg4 $1 $14) 42... a3 {[%emt 0:00:00] The position is equal.} 43. Ra6 {[%emt 0:00:00]} Kf5 {[%emt 0:00:00]} 44. h6 {[%emt 0:00:00]} Kg4 {[%emt 0:00:00]} 45. h7 {[%emt 0:00:00]} Rh2 {[%emt 0:00:00]} 46. Rxa3 {[%emt 0:00:00]} Rxh7 {[%emt 0:00:00] Weighted Error Value: White=0.06 (flawless) /Black=0.08 (flawless) .  Mistake:       	White=2     	Black=1      Inaccurate:     	White=1     	Black=3      OK:         	White=18    	Black=20     Best:        	White=4     	Black=3      Strong:       	---       	Black=2      Brilliant:      	White=1     	---} 1/2-1/2

[Event "45th FIDE Womens Olympiad 2024"]
[Site "Budapest"]
[Date "2024.09.15"]
[Round "5.28"]
[White "Fathmath, Zoya Hassan Saeed"]
[Black "Hephzibah, Awura-Ama Manubea Ta"]
[Result "0-1"]
[ECO "C02"]
[WhiteElo "1409"]
[BlackElo "1516"]
[PlyCount "118"]
[EventDate "2024.09.05"]
[EventType "team-tourn"]
[EventCountry "HUN"]
[WhiteTeam "Maldives"]
[BlackTeam "Ghana"]
[WhiteTeamCountry "MDV"]
[BlackTeamCountry "GHA"]
[TimeControl "40/5400+30:1800+30"]

1. e4 e6 2. d4 d5 3. e5 c5 4. c3 Nc6 5. Nf3 Qb6 6. Bd3 Nge7 7. a3 Ng6 8. O-O Bd7 9. dxc5 Bxc5 10. b4 Be7 11. Re1 a6 12. Nbd2 O-O 13. Nb3 Qc7 14. Qe2 Rac8 15. Bd2 Be8 16. Rac1 f6 17. Nbd4 Bf7 18. exf6 Bxf6 19. Nxe6 Bxe6 20. Qxe6+ Qf7 21. Bf5 Rce8 22. Qxf7+ Kxf7 23. Bc2 Kg8 24. Kf1 Nge5 25. Nxe5 Nxe5 26. Bb3 Rd8 27. Rc2 Nc4 28. Bc1 Ne5 29. Rd1 Nc4 30. Rxd5 b5 31. Rcd2 Nxd2+ 32. Rxd2+ Kh8 33. Rxd8 Rxd8 34. Ke2 Bxc3 35. f3 a5 36. bxa5 Bxa5 37. h4 Bc3 38. g4 h6 39. h5 Bf6 40. Bd2 Bg5 41. Bxg5 hxg5 42. a4 b4 43. Ke3 Kh7 44. Ke2 Rc8 45. Kd2 Rc3 46. Bd1 Kh6 47. Bc2 Rxf3 48. Bd1 Rg3 49. Kc2 g6 50. hxg6 Kxg6 51. Kb2 Kf6 52. Kc2 Ke5 53. Kb2 Kd4 54. Kc2 Ra3 55. Kb2 Ke3 56. Kc1 Kd3 57. Kb2 Kd4 58. Kb1 Kc3 59. Bc2 b3 {0-} 0-1

[Event "45th FIDE Womens Olympiad 2024"]
[Site "Budapest"]
[Date "2024.09.15"]
[Round "5.29"]
[White "Wagner, Dinara"]
[Black "Cramling, Pia"]
[Result "1/2-1/2"]
[ECO "D36"]
[WhiteElo "2452"]
[BlackElo "2425"]
[Annotator "TA"]
[PlyCount "61"]
[EventDate "2024.09.05"]
[EventType "team-tourn"]
[EventCountry "HUN"]
[SourceTitle "playchess.com"]
[Source "ChessBase"]
[SourceQuality "1"]
[WhiteTeam "Germany"]
[BlackTeam "Sweden"]
[WhiteTeamCountry "GER"]
[BlackTeamCountry "SWE"]
[TimeControl "40/5400+30:1800+30"]

{[%evp 21,61,7,35,31,35,37,36,32,41,36,58,66,41,32,29,27,25,20,97,102,106,112,108,90,99,92,85,89,84,78,85,86,71,50,71,-13,-8,-6,-7,-22,0,-8]} 1. d4 {[%emt 0:00:02]} d5 {[%emt 0:00:06]} 2. c4 {[%emt 0:00:05]} e6 {[%emt 0:00:04]} 3. Nf3 {[%emt 0:00:04]} Nf6 {[%emt 0:00:11]} 4. Nc3 {[%emt 0:00:08]} Nbd7 {[%emt 0:00:36][%cal Bb8d7,Bd7f8,Bf8e6][%mdl 32]} 5. cxd5 {[%emt 0:00:19]} exd5 {[%emt 0:00:07]} 6. Bg5 {[%emt 0:00:03][%cal Bc1g5,Bg5h4,Bh4g3][%mdl 32]} c6 {[%emt 0:01:41]} 7. Qc2 {[%emt 0:00:34]} Be7 {[%emt 0:00:25]} 8. h3 {[%emt 0:00:51]} Nf8 {[%emt 0:15:15]} 9. e3 {[%emt 0:06:28]} Ne6 {[%emt 0:00:58]} 10. Bh4 {[%emt 0:00:03]} g6 {[%emt 0:00:45]} 11. Bd3 {[%emt 0:07:31]} Ng7 {[%emt 0:00:24]} 12. g4 {[%emt 0:09:30]} Be6 {[%emt 0:21:06]} 13. O-O-O {[%emt 0:10:45]} Nd7 {[%emt 0:01:17]} 14. Bg3 {[%emt 0:02:33] White is slightly better.} O-O {[%emt 0:03:34]} 15. Ne5 {[%emt 0:07:23]} f6 {[%emt 0:04:54]} 16. Nxd7 {[%emt 0:02:45]} (16. Nxg6 {keeps more tension.} hxg6 17. Bxg6 f5 18. Rhg1) 16... Qxd7 {[%emt 0:00:17]} 17. Kb1 {[%emt 0:00:38]} Bd6 {[%emt 0:18:19]} 18. Bxd6 {[%emt 0:09:52]} Qxd6 {[%emt 0:00:02]} 19. Rdg1 {[%emt 0:00:34]} (19. Ne2 {is more complex.} f5 20. Rdg1 fxg4 21. hxg4 Rxf2 22. Bxg6 hxg6 23. Qxg6 Rxe2 24. Qh7+) 19... Qd7 {[%emt 0:05:02]} (19... f5 $11) 20. Ne2 $16 {[%emt 0:02:42]} b6 {[%emt 0:03:10]} 21. Nf4 {[%emt 0:12:39] Threatens to win with h4.} c5 {[%emt 0:02:35]} 22. dxc5 {[%emt 0:00:56] Hoping for h4. White is more active.} Rac8 {[%emt 0:00:12] [#]} 23. c6 $1 {[%emt 0:00:09]} Qxc6 {[%emt 0:00:16]} 24. Qxc6 {[%emt 0:05:45]} Rxc6 {[%emt 0:00:02]} 25. Rc1 {[%emt 0:01:24]} Rfc8 {[%emt 0:01:02][%cal Bf8c8,Bc8c6,Bc6c2][%mdl 32]} 26. Rxc6 {[%emt 0:00:28]} Rxc6 {[%emt 0:00:02]} 27. Bc2 {[%emt 0:00:26]} d4 {[%emt 0:13:33]} 28. exd4 {[%emt 0:00:23] [#]} (28. Be4 $16 Rd6 29. Rd1) 28... Bxa2+ $1 $11 {[%emt 0:00:21] The position is equal.} 29. Kxa2 {[%emt 0:01:55]} Rxc2 {[%emt 0:00:04]} 30. Rf1 {[%emt 0:04:37]} Kf7 {[%emt 0:02:14]} 31. Kb3 $1 {[%emt 0:00:16] Weighted Error Value: White=0.11 (very precise) /Black=0.12 (very precise) .  Mistake:       	White=1     	Black=1      OK:         	White=6     	Black=7      Best:        	---       	Black=1      Strong:       	White=1     	---        Brilliant:      	---       	Black=1} 1/2-1/2

[Event "45th FIDE Womens Olympiad 2024"]
[Site "Budapest"]
[Date "2024.09.15"]
[Round "5.30"]
[White "Agrest, Inna"]
[Black "Paehtz, Elisabeth"]
[Result "0-1"]
[ECO "B12"]
[WhiteElo "2197"]
[BlackElo "2455"]
[Annotator "TA"]
[PlyCount "72"]
[EventDate "2024.09.05"]
[EventType "team-tourn"]
[EventCountry "HUN"]
[SourceTitle "playchess.com"]
[Source "ChessBase"]
[SourceQuality "1"]
[WhiteTeam "Sweden"]
[BlackTeam "Germany"]
[WhiteTeamCountry "SWE"]
[BlackTeamCountry "GER"]
[TimeControl "40/5400+30:1800+30"]

{[%evp 9,72,22,33,12,19,8,12,8,16,12,25,10,8,0,16,-12,-12,-18,-14,-24,-38,-45,-30,-60,-47,-76,-59,-45,-35,-136,-128,-132,-128,-148,-111,-158,-108,-286,-284,-272,-264,-444,-218,-241,-243,-239,-230,-247,-235,-237,-242,-237,-237,-253,-244,-292,-302,-330,-324,-345,-339,-779,-753,-836,-812]} 1. e4 {[%emt 0:00:03]} c6 {[%emt 0:00:02]} 2. d4 {[%emt 0:00:33]} d5 {[%emt 0:00:03]} 3. e5 {[%emt 0:00:37]} Bf5 {[%emt 0:01:01]} 4. h4 {[%emt 0:00:42]} Qc7 {[%emt 0:00:24]} 5. Nc3 {[%emt 0:11:33]} h6 {[%emt 0:00:46]} 6. Bd3 {[%emt 0:02:36]} Bxd3 {[%emt 0:00:06]} 7. cxd3 {[%emt 0:01:12][%cal Oe5e6]} e6 {[%emt 0:00:39]} 8. Nf3 {[%emt 0:04:40] The position is equal.} h5 {[%emt 0:10:53]} 9. O-O {[%emt 0:03:00]} Nd7 {[%emt 0:01:03]} 10. a3 {[%emt 0:06:50]} Ne7 {[%emt 0:00:44]} 11. b4 {[%emt 0:08:29]} Nf5 {[%emt 0:00:43]} 12. Ne2 {[%emt 0:06:42]} Be7 {[%emt 0:07:30]} 13. Ng3 {[%emt 0:13:22]} Nxh4 {[%emt 0:11:01]} 14. Nxh4 {[%emt 0:00:15]} Bxh4 {[%emt 0:00:03]} 15. Nxh5 {[%emt 0:00:44]} O-O-O {[%emt 0:05:51]} 16. g3 {[%emt 0:03:34]} Be7 {[%emt 0:12:20]} 17. Kg2 {[%emt 0:05:02]} Rh7 {[%emt 0:00:12] [#] ...Rdh8 is the strong threat.} 18. Rh1 {[%emt 0:07:06]} Rdh8 {[%emt 0:00:37] ...g6 would now be deadly.} 19. g4 {[%emt 0:02:10]} (19. Rh3 $1 $15) 19... g6 {[%emt 0:05:54]} 20. Ng3 {[%emt 0:00:08]} Rxh1 {[%emt 0:00:03]} 21. Nxh1 {[%emt 0:00:04]} f6 {[%emt 0:00:14] Black is more active.} 22. f4 {[%emt 0:02:58]} ({White should try} 22. Qe2) 22... Qb6 {[%emt 0:02:17]} (22... g5 $142 {[%cal Rf6e5] aiming for ...fxe5.} 23. Qe2 Qb6 24. exf6 Bd6 (24... Bxf6 25. fxg5 Bxd4 26. Ra2 $17) (24... Qxd4 25. fxe7 Qxa1 26. Qxe6 $11) 25. Qxe6 (25. fxg5 $2 Rh2+ 26. Kf3 Rxe2 $19) 25... Qxd4) 23. Qe2 $2 {[%emt 0:06:12] [#] Loses the game.} (23. Bb2 $17) 23... Qxd4 $19 {[%emt 0:04:56]} 24. Ra2 {[%emt 0:00:43]} fxe5 {[%emt 0:01:44] White must now prevent ...Bd6.} 25. Rc2 $2 {[%emt 0:01:36]} (25. Nf2 {might work better.}) 25... Qb6 {[%emt 0:01:31]} (25... exf4 26. Bb2 f3+ 27. Qxf3 $17 (27. Kxf3 $2 Qg1 $19)) (25... Bd6 $142 26. Nf2 Rh4 (26... exf4 $2 27. Qxe6 Qe5 28. Qxe5 $19)) 26. fxe5 {[%emt 0:05:53]} Qd4 {[%emt 0:02:38]} 27. Nf2 {[%emt 0:00:32]} Rh4 {[%emt 0:06:31]} ({Inferior is} 27... Qxe5 28. Qxe5 Nxe5 29. Bb2 $11) (27... Nxe5 $2 {loses.} 28. Bb2 $18) 28. Qe3 {[%emt 0:05:30]} Qxe3 {[%emt 0:01:23]} 29. Bxe3 {[%emt 0:00:04]} Nxe5 {[%emt 0:00:24]} 30. Bxa7 {[%emt 0:00:38]} Nxg4 {[%emt 0:00:50]} 31. Re2 {[%emt 0:01:05]} Kd7 {[%emt 0:01:02]} 32. Nh3 {[%emt 0:00:30]} Nh6 {[%emt 0:01:18]} 33. Bf2 {[%emt 0:00:28]} Rh5 {[%emt 0:02:59]} 34. Nf4 {[%emt 0:01:01]} Rg5+ {[%emt 0:00:03]} 35. Kf3 $2 {[%emt 0:00:25]} (35. Kh1) 35... Rf5 {[%emt 0:00:29]} 36. Bg3 {[%emt 0:00:55]} g5 {[%emt 0:00:40] Weighted Error Value: White=0.50/Black=0.20 (precise) .  Loses game:     	White=1     	---        Mistake:       	White=4     	Black=2      Inaccurate:     	White=3     	---        OK:         	White=7     	Black=16     Best:        	White=2     	Black=2} 0-1

[Event "45th FIDE Womens Olympiad 2024"]
[Site "Budapest"]
[Date "2024.09.15"]
[Round "5.30"]
[White "Wahid, Chelsea"]
[Black "Gemota, Joan"]
[Result "1-0"]
[ECO "E91"]
[WhiteElo "1482"]
[BlackElo "1567"]
[PlyCount "44"]
[EventDate "2024.09.05"]
[EventType "team-tourn"]
[EventCountry "HUN"]
[WhiteTeam "Saint Lucia"]
[BlackTeam "Palau"]
[BlackTeamCountry "PAL"]
[TimeControl "40/5400+30:1800+30"]

1. d4 d6 2. c4 g6 3. e4 Bg7 4. Be2 Nf6 5. Nc3 O-O 6. Nf3 b6 7. O-O Bb7 8. Qc2 c5 9. d5 Nbd7 10. Bf4 e6 11. Bxd6 Re8 12. Nb5 exd5 13. Nc7 dxe4 14. Ne1 Re6 15. Nxe6 fxe6 16. f3 e3 17. Rd1 Ne8 18. b3 Bd4 19. Bf4 e5 20. Bg3 Nef6 21. Bh4 Qc7 22. Nd3 Re8 1-0

[Event "45th FIDE Womens Olympiad 2024"]
[Site "Budapest"]
[Date "2024.09.15"]
[Round "5.31"]
[White "Heinemann, Josefine"]
[Black "Cramling Bellon, Anna"]
[Result "1-0"]
[ECO "B45"]
[WhiteElo "2316"]
[BlackElo "2066"]
[Annotator "TA"]
[PlyCount "47"]
[EventDate "2024.09.05"]
[EventType "team-tourn"]
[EventCountry "HUN"]
[SourceTitle "playchess.com"]
[Source "ChessBase"]
[SourceQuality "1"]
[WhiteTeam "Germany"]
[BlackTeam "Sweden"]
[WhiteTeamCountry "GER"]
[BlackTeamCountry "SWE"]
[TimeControl "40/5400+30:1800+30"]

{[%evp 17,47,16,8,-4,0,0,0,0,0,0,127,0,0,0,450,451,552,539,651,656,764,741,745,718,880,888,883,795,888,885,2100,1987]} 1. e4 {[%emt 0:00:04]} c5 {[%emt 0:00:09]} 2. Nf3 {[%emt 0:00:11]} e6 {[%emt 0:00:04]} 3. d4 {[%emt 0:00:07]} cxd4 {[%emt 0:00:04]} 4. Nxd4 {[%emt 0:00:04]} Nf6 {[%emt 0:00:03][%cal Bg8f6,Bf6d5,Bd5e3][%mdl 32]} 5. Nc3 {[%emt 0:00:05]} Nc6 {[%emt 0:00:03]} 6. Nxc6 {[%emt 0:00:24]} bxc6 {[%emt 0:00:05]} 7. e5 {[%emt 0:00:08]} Nd5 {[%emt 0:00:04]} 8. Ne4 {[%emt 0:00:08]} Qc7 {[%emt 0:00:07]} 9. f4 {[%emt 0:00:05]} Qb6 {[%emt 0:01:00]} 10. a3 {[%emt 0:00:47] Against Qb4+} (10. c4 {seems wilder.} Bb4+ 11. Ke2 f5 12. exf6 Nxf6 13. Be3) 10... a5 {[%emt 0:00:49]} 11. c4 {[%emt 0:00:25]} Ne3 {[%emt 0:01:04]} 12. Qd3 {[%emt 0:00:11] The position is equal.} Nxf1 {[%emt 0:00:09]} 13. Rxf1 {[%emt 0:00:07]} a4 {[%emt 0:04:15] [#]} (13... Ba6 $11) 14. Be3 {[%emt 0:11:56] White has more active pieces.} (14. Bd2 $1 $16) 14... Qxb2 $11 {[%emt 0:21:40]} 15. Rb1 $36 {[%emt 0:01:31][%mdl 2048] White has some pressure.} Qxa3 {[%emt 0:06:48][%mdl 8192] [#]} (15... Qxg2 $11 {and Black stays safe.} 16. Nd6+ Bxd6 17. Qxd6 Qe4 (17... Qxh2 18. Bc5 $18)) 16. Qe2 $1 $18 {[%emt 0:03:35] White is clearly winning.} Ba6 {[%emt 0:51:41][%cal Oa6c4] Hoping for ...Bxc4!} 17. Bc1 {[%emt 0:01:32]} Qe7 {[%emt 0:00:04]} 18. Nd6+ {[%emt 0:00:04]} Kd8 {[%emt 0:00:03]} 19. Qb2 {[%emt 0:06:27][%cal Rb2b6]} Qh4+ {[%emt 0:05:56]} 20. g3 {[%emt 0:00:06][%cal Bg2g3,Bg3h4][%mdl 32]} Bxd6 {[%emt 0:04:31]} 21. gxh4 {[%emt 0:01:43]} Bc5 {[%emt 0:00:11]} 22. Qc2 {[%emt 0:01:25]} a3 {[%emt 0:00:33]} 23. Rf3 {[%emt 0:00:25]} Kc7 {[%emt 0:02:03]} 24. Bxa3 {[%emt 0:00:24] Weighted Error Value: White=0.14 (very precise) /Black=0.95.  Loses game:     	---       	Black=1      Mistake:       	White=1     	Black=1      OK:         	White=4     	Black=2      Best:        	White=1     	Black=1      Strong:       	White=1     	---} 1-0

[Event "45th FIDE Womens Olympiad 2024"]
[Site "Budapest"]
[Date "2024.09.15"]
[Round "5.32"]
[White "Valcu, Lavinia"]
[Black "Schulze, Lara"]
[Result "0-1"]
[ECO "D00"]
[WhiteElo "2076"]
[BlackElo "2283"]
[Annotator "TA"]
[PlyCount "44"]
[EventDate "2024.09.05"]
[EventType "team-tourn"]
[EventCountry "HUN"]
[SourceTitle "playchess.com"]
[Source "ChessBase"]
[SourceQuality "1"]
[WhiteTeam "Sweden"]
[BlackTeam "Germany"]
[WhiteTeamCountry "SWE"]
[BlackTeamCountry "GER"]
[TimeControl "40/5400+30:1800+30"]

{[%evp 9,44,-8,-4,-41,-28,-82,-39,-57,-36,-85,-31,-100,-101,-225,-218,-272,-241,-271,-265,-286,-281,-270,-280,-277,-275,-260,-268,-298,-316,-450,-465,-457,-456,-683,-585,-1419,-1261]} 1. d4 {[%emt 0:00:03]} Nf6 {[%emt 0:00:01]} 2. Bg5 {[%emt 0:00:09]} d5 {[%emt 0:00:08]} 3. Nd2 {[%emt 0:00:04]} c5 {[%emt 0:01:32]} 4. dxc5 {[%emt 0:00:08]} Nbd7 {[%emt 0:10:05]} 5. c4 {[%emt 0:17:05]} Nxc5 {[%emt 0:04:59]} 6. Bxf6 {[%emt 0:02:46]} exf6 {[%emt 0:02:18]} 7. b4 {[%emt 0:02:27]} (7. Ngf3 $11) 7... Ne6 {[%emt 0:06:18] [#] ...dxc4 would now be deadly. Black is more active.} 8. e3 {[%emt 0:08:43] Black is slightly better.} Be7 {[%emt 0:03:38]} (8... Bxb4 $2 {perishes.} 9. Qa4+ Bd7 10. Qxb4 $18) 9. Ngf3 {[%emt 0:01:37]} (9. cxd5 $15 Qxd5 10. a3) 9... O-O {[%emt 0:01:41]} (9... Bxb4 $2 {loses.} 10. Qa4+ Qd7 11. Qxb4 $18) (9... d4 $17 {...dxe3 is the strong threat.} 10. c5 O-O) 10. Qb3 {[%emt 0:02:39]} (10. cxd5 $15 Qxd5 11. Bc4) 10... d4 $17 {[%emt 0:05:58]} 11. e4 {[%emt 0:04:02]} (11. Rb1 $17) 11... a5 $19 {[%emt 0:01:37]} 12. b5 {[%emt 0:01:50] [#]} f5 $1 {[%emt 0:06:44][%mdl 512]} 13. Bd3 {[%emt 0:06:17]} (13. e5 Nc5) 13... Nc5 {[%emt 0:04:21]} 14. Qc2 {[%emt 0:00:06]} fxe4 {[%emt 0:00:39]} 15. Nxe4 {[%emt 0:00:24]} Nxd3+ {[%emt 0:01:16]} 16. Qxd3 {[%emt 0:00:05][%cal Oe1g1]} Bb4+ {[%emt 0:00:27]} 17. Nfd2 {[%emt 0:17:36]} Bf5 {[%emt 0:05:09] Hoping for ...Bxe4.} 18. O-O-O {[%emt 0:03:29]} Rc8 {[%emt 0:03:46]} 19. Kb1 {[%emt 0:04:17]} (19. Rhe1 $142) 19... Qe7 {[%emt 0:02:29] Black is clearly winning.} 20. f3 {[%emt 0:00:39]} Bc3 {[%emt 0:01:09] A strong pair of Bishops.} 21. Qc2 {[%emt 0:01:04]} (21. Rc1 $142) 21... Qb4+ {[%emt 0:01:03]} 22. Nb3 {[%emt 0:01:26]} Bxe4 {[%emt 0:01:22] White got outplayed after the opening.   Weighted Error Value: White=0.95/Black=0.19 (very precise) .  Mistake:       	White=6     	Black=1      Inaccurate:     	White=1     	Black=1      OK:         	White=2     	Black=9      Best:        	White=1     	Black=2} 0-1

[Event "45th FIDE Womens Olympiad 2024"]
[Site "Budapest"]
[Date "2024.09.15"]
[Round "5.32"]
[White "Richards, Trisann"]
[Black "Parrado, Angelica"]
[Result "1-0"]
[ECO "A28"]
[WhiteElo "1653"]
[BlackElo "1741"]
[PlyCount "125"]
[EventDate "2024.09.05"]
[EventType "team-tourn"]
[EventCountry "HUN"]
[WhiteTeam "Saint Lucia"]
[BlackTeam "Palau"]
[BlackTeamCountry "PAL"]
[TimeControl "40/5400+30:1800+30"]

1. c4 e5 2. Nc3 Nc6 3. Nf3 Nf6 4. e3 a6 5. Be2 Bb4 6. Qb3 O-O 7. O-O Bxc3 8. Qxc3 Qe7 9. d3 d6 10. h3 h6 11. Nd2 Be6 12. b3 Qd7 13. d4 d5 14. dxe5 Nh7 15. Bb2 Ng5 16. cxd5 Qxd5 17. Bf3 Nxf3+ 18. Nxf3 Qe4 19. Kh2 Rac8 20. Rfd1 g5 21. Qd3 Qb4 22. Ng1 Qe7 23. Qe2 Bf5 24. Qh5 Kh7 25. f4 Rg8 26. Rd2 Qe6 27. Nf3 Kg7 28. fxg5 Kf8 29. Qxh6+ Qxh6 30. gxh6 Be6 31. Nd4 Bd5 32. Nxc6 Bxc6 33. Ba3+ Ke8 34. Rf1 Bd7 35. Rf4 c5 36. Rdf2 Be6 37. Rh4 a5 38. h7 Rh8 39. e4 b6 40. Bc1 f6 41. Rxf6 Kd7 42. Rhh6 Rce8 43. Bg5 b5 44. Rf2 c4 45. Bf6 cxb3 46. axb3 Bxb3 47. Bxh8 Rxh8 48. Rb2 Bc4 49. g4 a4 50. g5 Ke7 51. Ra6 Kf7 52. g6+ Kg7 53. Kg3 Re8 54. Kf4 Kh6 55. Rg2 Bb3 56. h8=Q+ Rxh8 57. g7+ Kh7 58. gxh8=Q+ Kxh8 59. Ra7 Be6 60. Kg5 Bb3 61. Kf6 Bc4 62. e6 Bd3 63. Rd2 1-0